[Event "*** SCC Grand Prix: Titled Tuesday Blitz"]
[Site "Chess.com"]
[Date "2020.09.29"]
[Round "7"]
[White "Resignify"]
[Black "boasovietica"]
[Result "1-0"]
[WhiteElo "2269"]
[BlackElo "2427"]
[TimeControl "180+1"]
[EndTime "11:18:02 PDT"]
[Termination "Resignify won on time"]

1. e4 {[%clk 0:03:00.9]} 1... e5 {[%clk 0:02:59.3]} 2. Nf3 {[%clk 0:02:59.6]}
2... Nc6 {[%clk 0:02:59.5]} 3. Bb5 {[%clk 0:02:59.5]} 3... a6 {[%clk 0:02:59.4]}
4. Ba4 {[%clk 0:02:59.7]} 4... Nf6 {[%clk 0:02:59.5]} 5. O-O {[%clk 0:02:58.7]}
5... Be7 {[%clk 0:02:59.9]} 6. Re1 {[%clk 0:02:57.9]} 6... b5 {[%clk 0:03:00]}
7. Bb3 {[%clk 0:02:57.5]} 7... d6 {[%clk 0:03:00.7]} 8. c3 {[%clk 0:02:57.5]}
8... O-O {[%clk 0:03:00]} 9. h3 {[%clk 0:02:56.8]} 9... Bb7 {[%clk 0:03:00]} 10.
d3 {[%clk 0:02:53.2]} 10... Re8 {[%clk 0:02:49.2]} 11. Ng5 {[%clk 0:02:45.3]}
11... Rf8 {[%clk 0:02:48.8]} 12. f4 {[%clk 0:02:43.6]} 12... h6 {[%clk
0:02:44.4]} 13. Nf3 {[%clk 0:02:42.9]} 13... Nd7 {[%clk 0:02:13.2]} 14. Rf1
{[%clk 0:02:23.4]} 14... Nc5 {[%clk 0:02:07.4]} 15. Bc2 {[%clk 0:02:22.7]} 15...
exf4 {[%clk 0:01:47.5]} 16. Bxf4 {[%clk 0:02:19.7]} 16... d5 {[%clk 0:01:43.3]}
17. exd5 {[%clk 0:02:04.8]} 17... Qxd5 {[%clk 0:01:42.6]} 18. d4 {[%clk
0:02:00.7]} 18... Ne6 {[%clk 0:01:31.6]} 19. Bg3 {[%clk 0:01:30.6]} 19... Bd6
{[%clk 0:01:20.9]} 20. Bxd6 {[%clk 0:01:25.2]} 20... Qxd6 {[%clk 0:01:15.2]} 21.
Nbd2 {[%clk 0:01:23.8]} 21... Rae8 {[%clk 0:00:54.2]} 22. Ne4 {[%clk 0:01:20]}
22... Qd5 {[%clk 0:00:54.1]} 23. Qd2 {[%clk 0:01:07.8]} 23... Ned8 {[%clk
0:00:44.2]} 24. Nc5 {[%clk 0:00:43.1]} 24... Bc8 {[%clk 0:00:43]} 25. Rae1
{[%clk 0:00:31.3]} 25... Qh5 {[%clk 0:00:40]} 26. Qd3 {[%clk 0:00:26.8]} 26...
g6 {[%clk 0:00:39.7]} 27. Bb3 {[%clk 0:00:24]} 27... Rxe1 {[%clk 0:00:33.6]} 28.
Rxe1 {[%clk 0:00:24.9]} 28... Na5 {[%clk 0:00:31.7]} 29. Bc2 {[%clk 0:00:20.7]}
29... Bf5 {[%clk 0:00:30.8]} 30. Qe2 {[%clk 0:00:20.2]} 30... Bxc2 {[%clk
0:00:30.7]} 31. Qxc2 {[%clk 0:00:21.1]} 31... Qd5 {[%clk 0:00:27.6]} 32. b3
{[%clk 0:00:17.6]} 32... Nab7 {[%clk 0:00:23.5]} 33. Re5 {[%clk 0:00:14.2]}
33... Qd6 {[%clk 0:00:20.3]} 34. Ne4 {[%clk 0:00:11.9]} 34... Qb6 {[%clk
0:00:20.8]} 35. Qd2 {[%clk 0:00:11.1]} 35... Kg7 {[%clk 0:00:20.6]} 36. Qe3
{[%clk 0:00:09.3]} 36... Nd6 {[%clk 0:00:17.9]} 37. Nc5 {[%clk 0:00:07.8]} 37...
Nf5 {[%clk 0:00:18]} 38. Qf4 {[%clk 0:00:06.6]} 38... Qd6 {[%clk 0:00:17.3]} 39.
g4 {[%clk 0:00:02.2]} 39... Ne7 {[%clk 0:00:15.7]} 40. Qe4 {[%clk 0:00:01.9]}
40... Nec6 {[%clk 0:00:15.6]} 41. Rd5 {[%clk 0:00:01.5]} 41... Qe7 {[%clk
0:00:14.4]} 42. Qxe7 {[%clk 0:00:01]} 42... Nxe7 {[%clk 0:00:15.3]} 43. Rd7
{[%clk 0:00:01.2]} 43... Nec6 {[%clk 0:00:14.3]} 44. Ne5 {[%clk 0:00:01.4]}
44... Nxe5 {[%clk 0:00:14]} 45. dxe5 {[%clk 0:00:02.3]} 45... Re8 {[%clk
0:00:14.3]} 46. e6 {[%clk 0:00:02.2]} 46... Nxe6 {[%clk 0:00:14.1]} 47. Nxe6+
{[%clk 0:00:02.5]} 47... Rxe6 {[%clk 0:00:14.9]} 48. Rxc7 {[%clk 0:00:03.4]}
48... Re2 {[%clk 0:00:14.5]} 49. a4 {[%clk 0:00:03.4]} 49... bxa4 {[%clk
0:00:14.5]} 50. bxa4 {[%clk 0:00:04.3]} 50... Ra2 {[%clk 0:00:14.8]} 51. Ra7
{[%clk 0:00:04.4]} 51... Rxa4 {[%clk 0:00:14.7]} 52. c4 {[%clk 0:00:05.1]} 52...
Rxc4 {[%clk 0:00:13.3]} 53. Rxa6 {[%clk 0:00:04.9]} 53... Rc2 {[%clk 0:00:13.9]}
54. Rb6 {[%clk 0:00:03.6]} 54... Rd2 {[%clk 0:00:13.3]} 55. Rc6 {[%clk
0:00:03.8]} 55... Rd5 {[%clk 0:00:08.8]} 56. Rb6 {[%clk 0:00:03.9]} 56... h5
{[%clk 0:00:09.2]} 57. Kg2 {[%clk 0:00:04.4]} 57... h4 {[%clk 0:00:09.5]} 58.
Rb3 {[%clk 0:00:03.4]} 58... Rd2+ {[%clk 0:00:09.5]} 59. Kg1 {[%clk 0:00:03.3]}
59... Re2 {[%clk 0:00:09.1]} 60. Rf3 {[%clk 0:00:03.6]} 60... Re6 {[%clk
0:00:08]} 61. Kg2 {[%clk 0:00:03.8]} 61... Rf6 {[%clk 0:00:08.2]} 62. Re3 {[%clk
0:00:03.6]} 62... Rf4 {[%clk 0:00:08.6]} 63. Rd3 {[%clk 0:00:03.6]} 63... Kh6
{[%clk 0:00:07.9]} 64. Rc3 {[%clk 0:00:03.9]} 64... Kg5 {[%clk 0:00:08.2]} 65.
Rc5+ {[%clk 0:00:04]} 65... f5 {[%clk 0:00:06.6]} 66. gxf5 {[%clk 0:00:04.9]}
66... gxf5 {[%clk 0:00:04.5]} 67. Rc8 {[%clk 0:00:04.5]} 67... Rd4 {[%clk
0:00:04.3]} 68. Rg8+ {[%clk 0:00:04]} 68... Kf4 {[%clk 0:00:04.7]} 69. Rg7
{[%clk 0:00:02.8]} 69... Rd2+ {[%clk 0:00:05.1]} 70. Kf1 {[%clk 0:00:02.8]}
70... Rd3 {[%clk 0:00:05.6]} 71. Kg2 {[%clk 0:00:02.7]} 71... Rg3+ {[%clk
0:00:06]} 72. Rxg3 {[%clk 0:00:01.9]} 72... hxg3 {[%clk 0:00:05.8]} 73. h4
{[%clk 0:00:02.8]} 73... Kg4 {[%clk 0:00:06]} 74. h5 {[%clk 0:00:03.7]} 74... f4
{[%clk 0:00:06.5]} 75. h6 {[%clk 0:00:04]} 75... f3+ {[%clk 0:00:07.2]} 76. Kf1
{[%clk 0:00:03.9]} 76... f2 {[%clk 0:00:07.1]} 77. Kg2 {[%clk 0:00:03]} 77...
Kf4 {[%clk 0:00:03.1]} 78. h7 {[%clk 0:00:03.4]} 78... Ke3 {[%clk 0:00:03.4]}
79. h8=Q {[%clk 0:00:03.9]} 79... Ke2 {[%clk 0:00:03.3]} 80. Qe8+ {[%clk
0:00:03.3]} 80... Kd1 {[%clk 0:00:03.3]} 81. Qf7 {[%clk 0:00:03.5]} 1-0

[Event "*** SCC Grand Prix: Titled Tuesday Blitz"]
[Site "Chess.com"]
[Date "2020.09.29"]
[Round "7"]
[White "Th3_Hound"]
[Black "MFBerna"]
[Result "1/2-1/2"]
[WhiteElo "2520"]
[BlackElo "2379"]
[TimeControl "180+1"]
[EndTime "11:18:07 PDT"]
[Termination "Game drawn by repetition"]

1. e4 {[%clk 0:03:00.9]} 1... e5 {[%clk 0:03:00.2]} 2. Nf3 {[%clk 0:03:00.3]}
2... Nc6 {[%clk 0:02:59.6]} 3. Bb5 {[%clk 0:03:00.6]} 3... Nf6 {[%clk
0:02:57.7]} 4. O-O {[%clk 0:03:00.1]} 4... Nxe4 {[%clk 0:02:57.8]} 5. Re1 {[%clk
0:03:00.6]} 5... Nd6 {[%clk 0:02:57.9]} 6. Nxe5 {[%clk 0:03:01.2]} 6... Nxe5
{[%clk 0:02:57.7]} 7. Rxe5+ {[%clk 0:02:59.8]} 7... Be7 {[%clk 0:02:58.2]} 8.
Bf1 {[%clk 0:02:59.4]} 8... O-O {[%clk 0:02:58.1]} 9. d4 {[%clk 0:02:59.7]} 9...
Bf6 {[%clk 0:02:58.2]} 10. Re1 {[%clk 0:02:59.8]} 10... Ne8 {[%clk 0:02:56.6]}
11. d5 {[%clk 0:02:59.7]} 11... d6 {[%clk 0:02:52.9]} 12. Qd3 {[%clk 0:02:57.1]}
12... g6 {[%clk 0:02:51.2]} 13. Nc3 {[%clk 0:02:55.7]} 13... Bf5 {[%clk
0:02:51]} 14. Ne4 {[%clk 0:02:48]} 14... Bg7 {[%clk 0:02:46.4]} 15. Qb3 {[%clk
0:02:47.8]} 15... Rb8 {[%clk 0:02:27.6]} 16. Ng3 {[%clk 0:02:39.4]} 16... Bd7
{[%clk 0:02:23]} 17. Be3 {[%clk 0:02:39.4]} 17... b6 {[%clk 0:02:18.2]} 18. Rad1
{[%clk 0:02:38.9]} 18... Nf6 {[%clk 0:02:17.2]} 19. Bg5 {[%clk 0:02:29]} 19...
h6 {[%clk 0:02:15.4]} 20. Bd2 {[%clk 0:02:22.2]} 20... Re8 {[%clk 0:01:56.2]}
21. Bb5 {[%clk 0:02:10.8]} 21... Bxb5 {[%clk 0:01:46.3]} 22. Qxb5 {[%clk
0:02:10.1]} 22... Qd7 {[%clk 0:01:46.3]} 23. Qd3 {[%clk 0:01:58.8]} 23... a5
{[%clk 0:01:36.2]} 24. Bc3 {[%clk 0:01:52.9]} 24... Rxe1+ {[%clk 0:01:30.7]} 25.
Rxe1 {[%clk 0:01:52.7]} 25... Re8 {[%clk 0:01:31.6]} 26. Rd1 {[%clk 0:01:38.8]}
26... Ng4 {[%clk 0:01:22.4]} 27. Bxg7 {[%clk 0:01:36.5]} 27... Kxg7 {[%clk
0:01:23.3]} 28. Qd4+ {[%clk 0:01:36]} 28... Kg8 {[%clk 0:01:23.7]} 29. h3 {[%clk
0:01:32.9]} 29... Ne5 {[%clk 0:01:07.1]} 30. Ne4 {[%clk 0:01:31.8]} 30... Qe7
{[%clk 0:01:04.4]} 31. Qc3 {[%clk 0:01:05.3]} 31... f5 {[%clk 0:01:01.2]} 32.
Nd2 {[%clk 0:01:00.8]} 32... Nf7 {[%clk 0:00:36.1]} 33. Nf3 {[%clk 0:00:58.2]}
33... Qd8 {[%clk 0:00:27.3]} 34. Nd4 {[%clk 0:00:55.5]} 34... Qd7 {[%clk
0:00:18.1]} 35. Ne6 {[%clk 0:00:52.1]} 35... Nd8 {[%clk 0:00:12.4]} 36. Qxc7
{[%clk 0:00:20.7]} 36... Qxc7 {[%clk 0:00:12.2]} 37. Nxc7 {[%clk 0:00:21.5]}
37... Re2 {[%clk 0:00:13]} 38. Rc1 {[%clk 0:00:21.7]} 38... Kf7 {[%clk
0:00:09.3]} 39. Kf1 {[%clk 0:00:22.2]} 39... Re5 {[%clk 0:00:07]} 40. c4 {[%clk
0:00:20.7]} 40... Nb7 {[%clk 0:00:07.2]} 41. Nb5 {[%clk 0:00:20.7]} 41... Ke7
{[%clk 0:00:07.3]} 42. Re1 {[%clk 0:00:18.9]} 42... Nc5 {[%clk 0:00:07.6]} 43.
Rxe5+ {[%clk 0:00:17.6]} 43... dxe5 {[%clk 0:00:08.5]} 44. Ke2 {[%clk
0:00:17.7]} 44... g5 {[%clk 0:00:06.8]} 45. f3 {[%clk 0:00:17.5]} 45... h5
{[%clk 0:00:06.6]} 46. b3 {[%clk 0:00:17.5]} 46... Kd7 {[%clk 0:00:03.5]} 47.
Nc3 {[%clk 0:00:17.4]} 47... Kd6 {[%clk 0:00:02.8]} 48. Nd1 {[%clk 0:00:17.8]}
48... e4 {[%clk 0:00:02.9]} 49. Ne3 {[%clk 0:00:17]} 49... f4 {[%clk 0:00:01.4]}
50. Nf5+ {[%clk 0:00:16.7]} 50... Ke5 {[%clk 0:00:02]} 51. fxe4 {[%clk 0:00:17]}
51... Kxe4 {[%clk 0:00:02.2]} 52. Ng7 {[%clk 0:00:15.3]} 52... h4 {[%clk
0:00:01.8]} 53. Ne6 {[%clk 0:00:14.7]} 53... Nd7 {[%clk 0:00:01.3]} 54. Nxg5+
{[%clk 0:00:14.7]} 54... Kd4 {[%clk 0:00:01.8]} 55. Nf3+ {[%clk 0:00:15]} 55...
Kc3 {[%clk 0:00:02.4]} 56. Nxh4 {[%clk 0:00:15.3]} 56... Kb2 {[%clk 0:00:03.3]}
57. Nf5 {[%clk 0:00:15.5]} 57... Kxa2 {[%clk 0:00:03.2]} 58. h4 {[%clk
0:00:16.1]} 58... Kxb3 {[%clk 0:00:03.6]} 59. h5 {[%clk 0:00:15.8]} 59... a4
{[%clk 0:00:04.1]} 60. h6 {[%clk 0:00:08.4]} 60... Nf6 {[%clk 0:00:03.8]} 61. d6
{[%clk 0:00:03.2]} 61... a3 {[%clk 0:00:04]} 62. d7 {[%clk 0:00:03.6]} 62... a2
{[%clk 0:00:02]} 63. d8=Q {[%clk 0:00:04.5]} 63... a1=Q {[%clk 0:00:02.7]} 64.
Qd3+ {[%clk 0:00:05.4]} 64... Kb4 {[%clk 0:00:02.4]} 65. Qd6+ {[%clk 0:00:04.7]}
65... Kxc4 {[%clk 0:00:02.4]} 66. Qc6+ {[%clk 0:00:03.6]} 66... Kb4 {[%clk
0:00:02.5]} 67. Qxb6+ {[%clk 0:00:03.1]} 67... Kc4 {[%clk 0:00:03.1]} 68. Qc6+
{[%clk 0:00:03.3]} 68... Kb4 {[%clk 0:00:03.7]} 69. Qd6+ {[%clk 0:00:03.5]}
69... Kc4 {[%clk 0:00:03.6]} 70. Qd3+ {[%clk 0:00:03.4]} 70... Kc5 {[%clk
0:00:03.2]} 71. Qc2+ {[%clk 0:00:02.9]} 71... Kd5 {[%clk 0:00:02.7]} 72. Ne7+
{[%clk 0:00:02.6]} 72... Ke6 {[%clk 0:00:02.9]} 73. Qc6+ {[%clk 0:00:02.7]}
73... Kxe7 {[%clk 0:00:03]} 74. h7 {[%clk 0:00:02.9]} 74... Qb2+ {[%clk
0:00:03.3]} 75. Kf3 {[%clk 0:00:02.5]} 75... Qa3+ {[%clk 0:00:03.2]} 76. Kxf4
{[%clk 0:00:03.4]} 76... Nxh7 {[%clk 0:00:02.1]} 77. Qc7+ {[%clk 0:00:02.8]}
77... Kf6 {[%clk 0:00:02.6]} 78. Qxh7 {[%clk 0:00:03.7]} 78... Qc1+ {[%clk
0:00:02.1]} 79. Kg3 {[%clk 0:00:04.3]} 79... Qe1+ {[%clk 0:00:02.2]} 80. Kh2
{[%clk 0:00:04.8]} 80... Qe5+ {[%clk 0:00:02.4]} 81. Kh1 {[%clk 0:00:04.9]}
81... Qe1+ {[%clk 0:00:02.7]} 82. Kh2 {[%clk 0:00:05.2]} 82... Qe5+ {[%clk
0:00:03.2]} 83. g3 {[%clk 0:00:05.4]} 83... Qe2+ {[%clk 0:00:03.8]} 84. Kh1
{[%clk 0:00:04]} 84... Qf1+ {[%clk 0:00:03.8]} 85. Kh2 {[%clk 0:00:04.3]} 85...
Qe2+ {[%clk 0:00:03.5]} 86. Kh1 {[%clk 0:00:04.4]} 86... Qf1+ {[%clk 0:00:03.7]}
87. Kh2 {[%clk 0:00:04.5]} 87... Qe2+ {[%clk 0:00:04.2]} 1/2-1/2

[Event "*** SCC Grand Prix: Titled Tuesday Blitz"]
[Site "Chess.com"]
[Date "2020.09.29"]
[Round "7"]
[White "UmarovSabir"]
[Black "aNaartjieZA"]
[Result "1/2-1/2"]
[WhiteElo "2373"]
[BlackElo "2506"]
[TimeControl "180+1"]
[EndTime "11:18:20 PDT"]
[Termination "Game drawn - insufficient material"]

1. e4 {[%clk 0:02:59.2]} 1... e6 {[%clk 0:03:00.1]} 2. d4 {[%clk 0:02:55.3]}
2... d5 {[%clk 0:03:00.1]} 3. Nd2 {[%clk 0:02:55.1]} 3... Nf6 {[%clk 0:02:59.8]}
4. e5 {[%clk 0:02:48.2]} 4... Nfd7 {[%clk 0:02:59.7]} 5. Bd3 {[%clk 0:02:43.8]}
5... c5 {[%clk 0:02:59.6]} 6. c3 {[%clk 0:02:43.9]} 6... Nc6 {[%clk 0:03:00.1]}
7. Ne2 {[%clk 0:02:43.3]} 7... cxd4 {[%clk 0:02:59.2]} 8. cxd4 {[%clk
0:02:43.3]} 8... f6 {[%clk 0:02:59.5]} 9. exf6 {[%clk 0:02:26.3]} 9... Nxf6
{[%clk 0:03:00.4]} 10. O-O {[%clk 0:02:25.7]} 10... Bd6 {[%clk 0:03:00.4]} 11.
Nf3 {[%clk 0:02:22.8]} 11... O-O {[%clk 0:03:00.3]} 12. Bg5 {[%clk 0:02:22.5]}
12... Qc7 {[%clk 0:02:59.3]} 13. Bh4 {[%clk 0:02:19.9]} 13... Bd7 {[%clk
0:02:58.5]} 14. Bg3 {[%clk 0:02:18.5]} 14... Rae8 {[%clk 0:02:58]} 15. Rc1
{[%clk 0:02:16.4]} 15... Bxg3 {[%clk 0:02:53.6]} 16. hxg3 {[%clk 0:02:14.1]}
16... Qb6 {[%clk 0:02:52.7]} 17. b3 {[%clk 0:02:07.5]} 17... e5 {[%clk
0:02:52.5]} 18. dxe5 {[%clk 0:02:06.8]} 18... Nxe5 {[%clk 0:02:51.2]} 19. Nxe5
{[%clk 0:02:06]} 19... Rxe5 {[%clk 0:02:50.9]} 20. Bb1 {[%clk 0:02:03.6]} 20...
Ne4 {[%clk 0:02:47.5]} 21. Bxe4 {[%clk 0:02:01.3]} 21... Rxe4 {[%clk 0:02:43.1]}
22. Qxd5+ {[%clk 0:02:00.3]} 22... Qe6 {[%clk 0:02:42.6]} 23. Qxe6+ {[%clk
0:01:51.1]} 23... Rxe6 {[%clk 0:02:42.2]} 24. Nf4 {[%clk 0:01:48.4]} 24... Ra6
{[%clk 0:02:42.1]} 25. Rfd1 {[%clk 0:01:45.5]} 25... Bc6 {[%clk 0:02:41.5]} 26.
Rd2 {[%clk 0:01:45.4]} 26... Re8 {[%clk 0:02:37.2]} 27. f3 {[%clk 0:01:20.2]}
27... Ra5 {[%clk 0:02:35.7]} 28. Kf2 {[%clk 0:01:18.4]} 28... Rg5 {[%clk
0:02:34.6]} 29. Re2 {[%clk 0:01:15.5]} 29... Rxe2+ {[%clk 0:02:31.7]} 30. Nxe2
{[%clk 0:01:16.4]} 30... Rd5 {[%clk 0:02:31]} 31. Rc2 {[%clk 0:00:55.9]} 31...
Rd1 {[%clk 0:02:26.7]} 32. Nc3 {[%clk 0:00:52.2]} 32... Rd8 {[%clk 0:02:19.9]}
33. g4 {[%clk 0:00:50.4]} 33... Kf7 {[%clk 0:02:19.4]} 34. Re2 {[%clk
0:00:48.6]} 34... Rd3 {[%clk 0:02:17.4]} 35. Ne4 {[%clk 0:00:47]} 35... h6
{[%clk 0:02:14.1]} 36. Ng3 {[%clk 0:00:43.6]} 36... Rd7 {[%clk 0:02:08.1]} 37.
Nf5 {[%clk 0:00:41.8]} 37... Bb5 {[%clk 0:02:07.2]} 38. Rc2 {[%clk 0:00:39.3]}
38... Bd3 {[%clk 0:02:04.5]} 39. Rb2 {[%clk 0:00:34.6]} 39... Kf6 {[%clk
0:01:56.9]} 40. Ne3 {[%clk 0:00:31.5]} 40... Bb5 {[%clk 0:01:54.5]} 41. a4
{[%clk 0:00:23.1]} 41... Bc6 {[%clk 0:01:54.4]} 42. Nc4 {[%clk 0:00:22.9]} 42...
g6 {[%clk 0:01:50.5]} 43. a5 {[%clk 0:00:20.9]} 43... Bb5 {[%clk 0:01:43.8]} 44.
Rd2 {[%clk 0:00:19.7]} 44... Rc7 {[%clk 0:01:38.9]} 45. Rd6+ {[%clk 0:00:19.1]}
45... Kg7 {[%clk 0:01:36.1]} 46. Ne5 {[%clk 0:00:18.9]} 46... Be8 {[%clk
0:01:35.5]} 47. Re6 {[%clk 0:00:18.2]} 47... Bf7 {[%clk 0:01:34.7]} 48. Nxf7
{[%clk 0:00:17.5]} 48... Kxf7 {[%clk 0:01:35]} 49. Rd6 {[%clk 0:00:17.5]} 49...
Rc2+ {[%clk 0:01:33.5]} 50. Kg3 {[%clk 0:00:17.4]} 50... Rc7 {[%clk 0:01:32.9]}
51. b4 {[%clk 0:00:17.4]} 51... Kg7 {[%clk 0:01:32.3]} 52. b5 {[%clk 0:00:17.3]}
52... Kf7 {[%clk 0:01:29.2]} 53. b6 {[%clk 0:00:17]} 53... axb6 {[%clk
0:01:28.7]} 54. axb6 {[%clk 0:00:16.7]} 54... Re7 {[%clk 0:01:28.9]} 55. Kf4
{[%clk 0:00:15.4]} 55... Kg7 {[%clk 0:01:28.9]} 56. g5 {[%clk 0:00:14.6]} 56...
Rf7+ {[%clk 0:01:26.1]} 57. Kg4 {[%clk 0:00:11.4]} 57... h5+ {[%clk 0:01:25.9]}
58. Kg3 {[%clk 0:00:11.5]} 58... Re7 {[%clk 0:01:24.3]} 59. f4 {[%clk
0:00:11.1]} 59... Kf7 {[%clk 0:01:24.3]} 60. Rf6+ {[%clk 0:00:10.2]} 60... Kg7
{[%clk 0:01:24.3]} 61. Kf3 {[%clk 0:00:10.9]} 61... Rd7 {[%clk 0:01:23.9]} 62.
Ke4 {[%clk 0:00:10.2]} 62... Rd2 {[%clk 0:01:23.5]} 63. Re6 {[%clk 0:00:08.6]}
63... Rxg2 {[%clk 0:01:22.3]} 64. Re7+ {[%clk 0:00:08.9]} 64... Kf8 {[%clk
0:01:22.6]} 65. Rxb7 {[%clk 0:00:09.8]} 65... h4 {[%clk 0:01:22.6]} 66. Kf3
{[%clk 0:00:09.8]} 66... Rb2 {[%clk 0:01:22]} 67. Rh7 {[%clk 0:00:08]} 67...
Rxb6 {[%clk 0:01:21.1]} 68. Rxh4 {[%clk 0:00:08.9]} 68... Rb4 {[%clk 0:01:19.9]}
69. Rh7 {[%clk 0:00:08.3]} 69... Rc4 {[%clk 0:01:18.9]} 70. Rd7 {[%clk
0:00:08.4]} 70... Kg8 {[%clk 0:01:18.9]} 71. Ra7 {[%clk 0:00:08.4]} 71... Kf8
{[%clk 0:01:18.6]} 72. Rb7 {[%clk 0:00:07.7]} 72... Kg8 {[%clk 0:01:18.4]} 73.
Re7 {[%clk 0:00:08]} 73... Kf8 {[%clk 0:01:18.4]} 74. Re4 {[%clk 0:00:08.3]}
74... Rc3+ {[%clk 0:01:17.7]} 75. Kg4 {[%clk 0:00:08.3]} 75... Kg7 {[%clk
0:01:17.4]} 76. Re7+ {[%clk 0:00:08.1]} 76... Kf8 {[%clk 0:01:17.3]} 77. Rb7
{[%clk 0:00:07.7]} 77... Rc5 {[%clk 0:01:16.1]} 78. Rb6 {[%clk 0:00:07.8]} 78...
Kg7 {[%clk 0:01:15.8]} 79. Kf3 {[%clk 0:00:08.1]} 79... Rc4 {[%clk 0:01:15.2]}
80. Rf6 {[%clk 0:00:07.4]} 80... Rb4 {[%clk 0:01:13.9]} 81. Rd6 {[%clk
0:00:07.1]} 81... Rc4 {[%clk 0:01:13.5]} 82. Ke3 {[%clk 0:00:06.5]} 82... Ra4
{[%clk 0:01:08.7]} 83. Rd4 {[%clk 0:00:06.7]} 83... Ra5 {[%clk 0:01:07.3]} 84.
Ke4 {[%clk 0:00:07]} 84... Kf7 {[%clk 0:01:07]} 85. Rd5 {[%clk 0:00:07.1]} 85...
Ra4+ {[%clk 0:01:06.8]} 86. Ke5 {[%clk 0:00:07.2]} 86... Ra7 {[%clk 0:01:05]}
87. Rc5 {[%clk 0:00:05.8]} 87... Re7+ {[%clk 0:01:04.6]} 88. Kd4 {[%clk
0:00:03.3]} 88... Re1 {[%clk 0:01:04.3]} 89. Rd5 {[%clk 0:00:04.2]} 89... Kg7
{[%clk 0:01:01.6]} 90. Kc5 {[%clk 0:00:04.2]} 90... Re4 {[%clk 0:01:00.2]} 91.
Rd4 {[%clk 0:00:04.2]} 91... Re1 {[%clk 0:01:00.1]} 92. Kd6 {[%clk 0:00:04.4]}
92... Kf7 {[%clk 0:00:58.7]} 93. Rd5 {[%clk 0:00:04.3]} 93... Re6+ {[%clk
0:00:58.1]} 94. Kd7 {[%clk 0:00:04.1]} 94... Re4 {[%clk 0:00:57.6]} 95. f5
{[%clk 0:00:04.2]} 95... gxf5 {[%clk 0:00:57.3]} 96. Rxf5+ {[%clk 0:00:04.5]}
96... Kg6 {[%clk 0:00:57.3]} 97. Rd5 {[%clk 0:00:04.4]} 97... Rg4 {[%clk
0:00:56.7]} 98. Ke6 {[%clk 0:00:04.4]} 98... Rxg5 {[%clk 0:00:56.4]} 99. Rxg5+
{[%clk 0:00:04.2]} 99... Kxg5 {[%clk 0:00:57.3]} 1/2-1/2